fUSD/lending_fUSD_20250708
["ID","MTS","AMOUNT","RATE_DAILY","PERIOD"]
[370410844,1752006638355,-328.6,0.00024578,2]
[370410845,1752006638366,-224.56482628,0.00024582,2]
[370410847,1752006638375,-339.39147324,0.00024583,2]
[370410849,1752006638385,-168.0,0.00024586,2]
[370410851,1752006638395,-980.68294348,0.0002459,11]
[370410852,1752006638404,-224.56482628,0.00024613,2]
[370410854,1752006638413,-339.39147324,0.00024614,2]
[370410856,1752006638426,-300.0,0.00024628,2]
[370410859,1752006638441,-190.32787184,0.00024638,2]
[370410861,1752006638452,-207.0,0.0002464,2]
[370410863,1752006638462,-292.0,0.0002464,2]
[370410866,1752006638473,-998.1,0.00024642,2]
[370410868,1752006638482,-224.56482628,0.00024644,2]
[370410869,1752006638492,-297.38,0.00024645,2]
[370410871,1752006638501,-339.39147324,0.00024645,2]
[370410873,1752006638512,-998.1,0.00024647,2]
[370410875,1752006638521,-335.1885,0.00024649,2]
[370410877,1752006638530,-3523.44102626,0.00024649,4]
[370410879,1752006638540,-99661.24022637,0.0002465,2]
[370410882,1752006638549,-4118.1214456,0.00024652,2]
[370410884,1752006638560,-4851.094827,0.00024652,2]
[370410886,1752006638570,-30176.9576488,0.00024652,2]
[370410888,1752006638579,-53338.8261927,0.00024652,2]
[370410890,1752006638588,-150.0,0.00024652,2]
[370410892,1752006638598,-1977.2588797,0.00024652,2]
[370410893,1752006638607,-150.0,0.00024652,2]
[370410895,1752006638618,-200.0,0.00024652,2]
[370410897,1752006638627,-150.0,0.00024652,2]
[370410899,1752006638637,-150.0,0.00024652,2]
[370410901,1752006638646,-150.0,0.00024652,2]
[370410903,1752006638655,-15961.5170885,0.00024652,2]
[370410905,1752006638665,-150.0,0.00024652,2]
[370410907,1752006638674,-500.0,0.00024652,2]
[370410909,1752006638684,-796.0,0.00024652,2]
[370410911,1752006638694,-3227.2460188,0.00024652,2]
[370410913,1752006638704,-164.33604,0.00024652,7]
[370410915,1752006638714,-8496.0063024,0.00024652,2]
[370410918,1752006638724,-151.0,0.00024653,7]
[370410919,1752006638733,-151.0,0.00024653,7]
[370410921,1752006638742,-151.0,0.00024653,7]
[370410923,1752006638751,-151.0,0.00024653,7]
[370410925,1752006638761,-151.0,0.00024653,7]
[370410927,1752006638770,-151.0,0.00024653,7]
[370410929,1752006638779,-1037.0,0.00024653,2]
[370410931,1752006638788,-150.0,0.00024653,2]
[370410933,1752006638798,-150.0,0.00024653,2]
[370410935,1752006638807,-150.0,0.00024653,2]
[370410937,1752006638816,-500.0,0.00024653,2]
[370410939,1752006638825,-150.0,0.00024653,2]
[370410941,1752006638835,-500.0,0.00024653,2]
[370410943,1752006638844,-150.25187938,0.00024653,2]
[370410945,1752006638853,-448.0,0.00024653,2]
[370410947,1752006638864,-500.0,0.00024653,2]
[370410949,1752006638874,-150.0,0.00024653,2]
[370410951,1752006638883,-1515.0,0.00024653,2]
[370410953,1752006638893,-500.0,0.00024653,2]
[370410955,1752006638902,-150.0,0.00024653,2]
[370410957,1752006638911,-188.8565329,0.00024653,2]
[370410959,1752006638922,-225.47238081,0.00024653,2]
[370410961,1752006638931,-150.0,0.00024653,2]
[370410963,1752006638940,-150.0,0.00024653,2]
[370410965,1752006638950,-150.0,0.00024653,2]
[370410967,1752006638959,-291.65,0.00024654,2]
[370410998,1752006639248,-400.02407079,0.00024655,2]
[370411000,1752006639259,-500.0,0.00024655,2]
[370411002,1752006639268,-500.0,0.00024655,2]
[370411004,1752006639278,-500.0,0.00024655,2]
[370411006,1752006639287,-319.8649416,0.00024655,2]
[370411008,1752006639297,-155.0,0.00024656,2]
[370411010,1752006639307,-250.78918594,0.00024656,2]
[370411012,1752006639316,-500.0,0.00024656,2]
[370411014,1752006639326,-150.0,0.00024656,2]
[370411016,1752006639335,-669.67496428,0.00024656,2]
[370411018,1752006639344,-338.12241828,0.00024656,2]
[370411020,1752006639353,-300.0,0.00024656,2]
[370411022,1752006639363,-300.0,0.00024656,2]
[370411024,1752006639372,-300.0,0.00024656,2]
[370411026,1752006639382,-300.0,0.00024656,2]
[370411028,1752006639391,-300.0,0.00024656,2]
[370411030,1752006639400,-805.0,0.00024656,2]
[370411032,1752006639410,-641.0,0.00024656,2]
[370411034,1752006639420,-2011.0,0.00024656,2]
[370411036,1752006639429,-1283.0,0.00024656,2]
[370411038,1752006639444,-1682.0,0.00024656,2]
[370411040,1752006639453,-561.0,0.00024656,2]
[370411042,1752006639463,-593.0,0.00024656,2]
[370411044,1752006639473,-932.0,0.00024656,2]
[370411046,1752006639483,-1164.0,0.00024656,2]
[370411048,1752006639492,-887.0,0.00024656,2]
[370411050,1752006639502,-3344.0,0.00024656,2]
[370411052,1752006639510,-7158.0,0.00024656,2]
[370411054,1752006639519,-949.0,0.00024656,2]
[370411056,1752006639528,-3039.07071174,0.00024656,7]
[370411058,1752006639538,-46618.20535375,0.00024656,7]
[370411060,1752006639547,-837.09214054,0.00024657,3]
[370411062,1752006639556,-189484.09,0.00024657,3]
[370411063,1752006639565,-996.0,0.00024657,2]
[370411066,1752006639575,-215282.1273715,0.00024657,2]
[370411067,1752006639584,-332.36062982,0.00024657,2]
[370411069,1752006639593,-1277.23495794,0.00024657,2]
[370411071,1752006639603,-151.661481,0.00024657,2]
[370411073,1752006639613,-152.023756,0.00024657,2]
[370411076,1752006639623,-152.727633,0.00024657,2]
[370411077,1752006639633,-173.276069,0.00024657,2]
[370411079,1752006639642,-161.626614,0.00024657,2]
[370411081,1752006639651,-280.036808,0.00024657,2]
[370411083,1752006639661,-2774.91586,0.00024657,2]
[370411085,1752006639671,-2714.970108,0.00024657,2]
[370411088,1752006639685,-2931.493707,0.00024657,2]
[370411090,1752006639694,-460.0,0.00024657,2]
[370411092,1752006639704,-460.0,0.00024657,2]
[370411094,1752006639714,-460.0,0.00024657,2]
[370411096,1752006639724,-460.0,0.00024657,2]
[370411098,1752006639733,-460.0,0.00024657,2]
[370411100,1752006639743,-460.0,0.00024657,2]
[370411102,1752006639752,-629.45,0.00024657,2]
[370411104,1752006639761,-460.0,0.00024657,2]
[370411106,1752006639770,-460.0,0.00024657,2]
[370411108,1752006639780,-460.0,0.00024657,2]
[370411110,1752006639789,-494.6558282,0.00024657,2]
[370411112,1752006639799,-460.0,0.00024657,2]
[370411114,1752006639808,-648.33,0.00024657,2]
[370411116,1752006639819,-715.68,0.00024657,2]
[370411118,1752006639829,-460.0,0.00024657,2]
[370411120,1752006639839,-460.0,0.00024657,2]
[370411122,1752006639848,-460.0,0.00024657,2]
[370411124,1752006639858,-460.0,0.00024657,2]
[370411126,1752006639868,-460.0,0.00024657,2]
[370411128,1752006639877,-460.0,0.00024657,2]
[370411130,1752006639887,-298.953316,0.00024657,2]
[370411132,1752006639897,-460.0,0.00024657,2]
[370411134,1752006639906,-463.84,0.00024657,2]
[370411135,1752006639916,-523.95,0.00024657,2]
[370411137,1752006639925,-460.0,0.00024657,2]
[370411139,1752006639935,-460.0,0.00024657,2]
[370411142,1752006639944,-460.0,0.00024657,2]
[370411144,1752006639954,-460.0,0.00024657,2]
[370411146,1752006639963,-460.0,0.00024657,2]
[370411148,1752006639973,-460.0,0.00024657,2]
[370411150,1752006639983,-460.0,0.00024657,2]
[370411152,1752006639992,-460.0,0.00024657,2]
[370411154,1752006640002,-486.73,0.00024657,2]
[370411156,1752006640011,-508.48,0.00024657,2]
[370411159,1752006640021,-460.0,0.00024657,2]
[370411161,1752006640031,-460.0,0.00024657,2]
[370411163,1752006640040,-460.0,0.00024657,2]
[370411164,1752006640050,-460.0,0.00024657,2]
[370411166,1752006640059,-460.0,0.00024657,2]
[370411167,1752006640068,-460.0,0.00024657,2]
[370411168,1752006640077,-460.0,0.00024657,2]
[370411169,1752006640086,-594.6725,0.00024657,2]
[370411170,1752006640096,-628.66,0.00024657,2]
[370411171,1752006640105,-889.12,0.00024657,2]
[370411172,1752006640114,-367.46664549,0.00024657,2]
[370411173,1752006640124,-460.0,0.00024657,2]
[370411174,1752006640134,-460.0,0.00024657,2]
[370411175,1752006640143,-460.0,0.00024657,2]
[370411176,1752006640152,-460.0,0.00024657,2]
[370411177,1752006640161,-460.0,0.00024657,2]
[370411178,1752006640170,-580.0,0.00024657,2]
[370411179,1752006640179,-387.43028077,0.00024657,2]
[370411180,1752006640188,-460.0,0.00024657,2]
[370411181,1752006640197,-460.0,0.00024657,2]
[370411182,1752006640206,-460.0,0.00024657,2]
[370411183,1752006640215,-460.0,0.00024657,2]
[370411184,1752006640224,-487.2,0.00024657,2]
[370411185,1752006640233,-460.0,0.00024657,2]
[370411187,1752006640242,-481.25,0.00024657,2]
[370411189,1752006640251,-460.0,0.00024657,2]
[370411191,1752006640260,-460.0,0.00024657,2]
[370411193,1752006640270,-958.41,0.00024657,2]
[370411195,1752006640279,-460.0,0.00024657,2]
[370411197,1752006640289,-1218.51,0.00024657,2]
[370411199,1752006640298,-631.52,0.00024657,2]
[370411201,1752006640307,-460.0,0.00024657,2]
[370411203,1752006640316,-460.0,0.00024657,2]
[370411205,1752006640326,-1003.72,0.00024657,2]
[370411207,1752006640335,-460.0,0.00024657,2]
[370411209,1752006640345,-460.0,0.00024657,2]
[370411211,1752006640354,-949.22,0.00024657,2]
[370411213,1752006640364,-1716.97,0.00024657,2]
[370411215,1752006640374,-867.41,0.00024657,2]
[370411217,1752006640383,-638.84,0.00024657,2]
[370411219,1752006640392,-460.0,0.00024657,2]
[370411221,1752006640402,-460.0,0.00024657,2]
[370411223,1752006640411,-460.0,0.00024657,2]
[370411225,1752006640421,-460.0,0.00024657,2]
[370411227,1752006640431,-763.96,0.00024657,2]
[370411229,1752006640442,-460.0,0.00024657,2]
[370411231,1752006640451,-460.0,0.00024657,2]
[370411233,1752006640461,-460.0,0.00024657,2]
[370411235,1752006640472,-501.33,0.00024657,2]
[370411237,1752006640481,-917.3,0.00024657,2]
[370411239,1752006640491,-559.47,0.00024657,2]
[370411241,1752006640500,-175.97667447,0.00024657,2]
[370411243,1752006640511,-690.23,0.00024657,2]
[370411245,1752006640520,-545.77,0.00024657,2]
[370411247,1752006640531,-703.01,0.00024657,2]
[370411249,1752006640540,-460.0,0.00024657,2]
[370411251,1752006640550,-527.03,0.00024657,2]
[370411253,1752006640560,-460.0,0.00024657,2]
[370411255,1752006640569,-979.83,0.00024657,2]
[370411257,1752006640578,-460.0,0.00024657,2]
[370411259,1752006640588,-460.0,0.00024657,2]
[370411261,1752006640597,-460.0,0.00024657,2]
[370411263,1752006640607,-755.13,0.00024657,2]
[370411266,1752006640617,-460.0,0.00024657,2]
[370411267,1752006640627,-1301.22,0.00024657,2]
[370411270,1752006640637,-460.0,0.00024657,2]
[370411272,1752006640647,-732.04,0.00024657,2]
[370411274,1752006640656,-460.0,0.00024657,2]
[370411276,1752006640665,-460.0,0.00024657,2]
[370411278,1752006640674,-460.0,0.00024657,2]
[370411280,1752006640684,-1069.39,0.00024657,2]
[370411282,1752006640694,-460.0,0.00024657,2]
[370411284,1752006640703,-607.7,0.00024657,2]
[370411286,1752006640714,-460.0,0.00024657,2]
[370411288,1752006640723,-460.0,0.00024657,2]
[370411290,1752006640735,-151.87008638,0.00024657,2]
[370411292,1752006640744,-460.0,0.00024657,2]
[370411294,1752006640753,-460.0,0.00024657,2]
[370411296,1752006640763,-494.17,0.00024657,2]
[370411298,1752006640772,-460.0,0.00024657,2]
[370411300,1752006640781,-756.77,0.00024657,2]
[370411302,1752006640790,-460.0,0.00024657,2]
[370411304,1752006640800,-460.0,0.00024657,2]
[370411306,1752006640809,-558.8,0.00024657,2]
[370411308,1752006640818,-460.0,0.00024657,2]
[370411310,1752006640828,-460.0,0.00024657,2]
[370411312,1752006640837,-344.78515358,0.00024657,2]
[370411314,1752006640846,-460.0,0.00024657,2]
[370411316,1752006640855,-460.0,0.00024657,2]
[370411318,1752006640865,-1140.86,0.00024657,2]
[370411320,1752006640875,-559.8,0.00024657,2]
[370411322,1752006640884,-919.88,0.00024657,2]
[370411324,1752006640893,-460.0,0.00024657,2]
[370411326,1752006640903,-492.591147,0.00024657,2]
[370411328,1752006640912,-460.0,0.00024657,2]
[370411330,1752006640921,-678.44,0.00024657,2]
[370411332,1752006640930,-527.8,0.00024657,2]
[370411334,1752006640939,-789.45,0.00024657,2]
[370411336,1752006640949,-460.0,0.00024657,2]
[370411338,1752006640958,-731.61,0.00024657,2]
[370411340,1752006640967,-988.6,0.00024657,2]
[370411342,1752006640976,-460.0,0.00024657,2]
[370411344,1752006640985,-385.51943646,0.00024657,2]
[370411345,1752006640994,-460.0,0.00024657,2]
[370411347,1752006641004,-460.0,0.00024657,2]
[370411349,1752006641013,-460.0,0.00024657,2]
[370411351,1752006641022,-506.37,0.00024657,2]
[370411353,1752006641031,-460.0,0.00024657,2]
[370411355,1752006641041,-460.0,0.00024657,2]
[370411357,1752006641051,-460.0,0.00024657,2]
[370411359,1752006641059,-1264.83,0.00024657,2]
[370411361,1752006641069,-460.0,0.00024657,2]
[370411363,1752006641078,-492.85,0.00024657,2]
[370411365,1752006641087,-605.73,0.00024657,2]
[370411367,1752006641096,-492.79,0.00024657,2]
[370411369,1752006641105,-460.0,0.00024657,2]
[370411371,1752006641116,-460.0,0.00024657,2]
[370411373,1752006641125,-460.0,0.00024657,2]
[370411376,1752006641135,-678.5,0.00024657,2]
[370411378,1752006641145,-466.36,0.00024657,2]
[370411380,1752006641154,-460.0,0.00024657,2]
[370411382,1752006641163,-719.24,0.00024657,2]
[370411384,1752006641172,-1118.01,0.00024657,2]
[370411386,1752006641182,-269.51948275,0.00024657,2]
[370411388,1752006641191,-460.0,0.00024657,2]
[370411390,1752006641200,-460.0,0.00024657,2]
[370411392,1752006641209,-547.43,0.00024657,2]
[370411394,1752006641220,-460.0,0.00024657,2]
[370411396,1752006641229,-490.0,0.00024657,2]
[370411398,1752006641238,-460.0,0.00024657,2]
[370411400,1752006641248,-474.79,0.00024657,2]
[370411401,1752006641256,-763.71,0.00024657,2]
[370411403,1752006641265,-460.0,0.00024657,2]
[370411404,1752006641275,-460.0,0.00024657,2]
[370411406,1752006641284,-460.0,0.00024657,2]
[370411408,1752006641293,-460.0,0.00024657,2]
[370411410,1752006641303,-264.05542482,0.00024657,2]
[370411412,1752006641312,-872.32,0.00024657,2]
[370411414,1752006641322,-1182.91,0.00024657,2]
[370411416,1752006641331,-572.2,0.00024657,2]
[370411418,1752006641341,-460.0,0.00024657,2]
[370411420,1752006641351,-460.0,0.00024657,2]
[370411422,1752006641360,-460.0,0.00024657,2]
[370411424,1752006641370,-475.13,0.00024657,2]
[370411426,1752006641379,-904.31,0.00024657,2]
[370411428,1752006641389,-460.0,0.00024657,2]
[370411430,1752006641398,-1305.11,0.00024657,2]
[370411432,1752006641408,-460.0,0.00024657,2]
[370411434,1752006641418,-460.0,0.00024657,2]
[370411436,1752006641431,-460.0,0.00024657,2]
[370411438,1752006641441,-204.0030586,0.00024657,2]
[370411440,1752006641449,-460.0,0.00024657,2]
[370411442,1752006641459,-460.0,0.00024657,2]
[370411444,1752006641469,-882.59,0.00024657,2]
[370411446,1752006641479,-460.0,0.00024657,2]
[370411448,1752006641488,-772.4,0.00024657,2]
[370411450,1752006641497,-460.0,0.00024657,2]
[370411452,1752006641507,-633.81,0.00024657,2]
[370411454,1752006641517,-460.0,0.00024657,2]
[370411456,1752006641527,-460.0,0.00024657,2]
[370411457,1752006641535,-460.0,0.00024657,2]
[370411459,1752006641546,-460.0,0.00024657,2]
[370411461,1752006641555,-460.0,0.00024657,2]
[370411463,1752006641564,-460.0,0.00024657,2]
[370411465,1752006641575,-460.0,0.00024657,2]
[370411467,1752006641584,-863.93,0.00024657,2]
[370411469,1752006641593,-460.0,0.00024657,2]
[370411471,1752006641603,-460.0,0.00024657,2]
[370411473,1752006641613,-460.0,0.00024657,2]
[370411475,1752006641622,-460.0,0.00024657,2]
[370411477,1752006641632,-460.0,0.00024657,2]
[370411479,1752006641642,-647.37,0.00024657,2]
[370411481,1752006641652,-1145.42,0.00024657,2]
[370411483,1752006641661,-460.0,0.00024657,2]
[370411485,1752006641670,-880.62,0.00024657,2]
[370411487,1752006641679,-715.06,0.00024657,2]
[370411489,1752006641688,-475.71,0.00024657,2]
[370411491,1752006641698,-460.0,0.00024657,2]
[370411493,1752006641707,-460.0,0.00024657,2]
[370411495,1752006641717,-496.29,0.00024657,2]
[370411497,1752006641727,-460.0,0.00024657,2]
[370411499,1752006641737,-460.0,0.00024657,2]
[370411501,1752006641746,-1053.96,0.00024657,2]
[370411503,1752006641756,-460.0,0.00024657,2]
[370411505,1752006641765,-655.46,0.00024657,2]
[370411507,1752006641775,-999.64,0.00024657,2]
[370411509,1752006641784,-460.0,0.00024657,2]
[370411511,1752006641794,-587.22900961,0.00024657,2]
[370411513,1752006641803,-1411.05,0.00024657,2]
[370411515,1752006641812,-460.0,0.00024657,2]
[370411517,1752006641821,-460.0,0.00024657,2]
[370411519,1752006641831,-240.0484437,0.00024657,2]
[370411521,1752006641841,-486.13,0.00024657,2]
[370411522,1752006641851,-460.0,0.00024657,2]
[370411524,1752006641860,-460.0,0.00024657,2]
[370411526,1752006641869,-460.0,0.00024657,2]
[370411528,1752006641879,-509.84,0.00024657,2]
[370411530,1752006641888,-460.0,0.00024657,2]
[370411532,1752006641897,-460.0,0.00024657,2]
[370411534,1752006641906,-790.33,0.00024657,2]
[370411536,1752006641915,-460.0,0.00024657,2]
[370411538,1752006641924,-460.0,0.00024657,2]
[370411540,1752006641934,-297.99919518,0.00024657,2]
[370411542,1752006641943,-460.0,0.00024657,2]
[370411544,1752006641954,-460.0,0.00024657,2]
[370411548,1752006641973,-570.3,0.00024657,2]
[370411550,1752006641984,-460.0,0.00024657,2]
[370411552,1752006641994,-460.0,0.00024657,2]
[370411554,1752006642003,-460.0,0.00024657,2]
[370411556,1752006642014,-460.0,0.00024657,2]
[370411558,1752006642024,-460.0,0.00024657,2]
[370411560,1752006642033,-629.32,0.00024657,2]
[370411562,1752006642043,-460.0,0.00024657,2]
[370411564,1752006642054,-541.95,0.00024657,2]
[370411566,1752006642065,-460.0,0.00024657,2]
[370411568,1752006642075,-460.0,0.00024657,2]
[370411570,1752006642084,-460.0,0.00024657,2]
[370411572,1752006642094,-1340.22,0.00024657,2]
[370411574,1752006642104,-496.3,0.00024657,2]
[370411576,1752006642114,-460.0,0.00024657,2]
[370411578,1752006642124,-180.50548272,0.00024657,2]
[370411580,1752006642134,-460.0,0.00024657,2]
[370411582,1752006642143,-460.0,0.00024657,2]
[370411584,1752006642153,-547.27,0.00024657,2]
[370411586,1752006642163,-478.07204671,0.00024657,2]
[370411588,1752006642173,-474.56,0.00024657,2]
[370411591,1752006642183,-460.0,0.00024657,2]
[370411593,1752006642193,-874.7,0.00024657,2]
[370411595,1752006642202,-460.0,0.00024657,2]
[370411597,1752006642212,-460.0,0.00024657,2]
[370411598,1752006642221,-460.0,0.00024657,2]
[370411601,1752006642231,-655.98,0.00024657,2]
[370411603,1752006642240,-551.35,0.00024657,2]
[370411605,1752006642250,-460.0,0.00024657,2]
[370411607,1752006642259,-1414.36,0.00024657,2]
[370411609,1752006642269,-801.61,0.00024657,2]
[370411611,1752006642279,-460.0,0.00024657,2]
[370411613,1752006642289,-460.0,0.00024657,2]
[370411615,1752006642298,-460.0,0.00024657,2]
[370411617,1752006642308,-1209.52,0.00024657,2]
[370411619,1752006642317,-460.0,0.00024657,2]
[370411621,1752006642327,-460.0,0.00024657,2]
[370411623,1752006642337,-692.78,0.00024657,2]
[370411625,1752006642347,-460.0,0.00024657,2]
[370411627,1752006642356,-460.0,0.00024657,2]
[370411629,1752006642366,-543.77,0.00024657,2]
[370411631,1752006642376,-460.0,0.00024657,2]
[370411633,1752006642386,-535.09,0.00024657,2]
[370411635,1752006642395,-460.0,0.00024657,2]
[370411637,1752006642404,-460.0,0.00024657,2]
[370411639,1752006642414,-941.65,0.00024657,2]
[370411641,1752006642424,-460.0,0.00024657,2]
[370411643,1752006642435,-460.0,0.00024657,2]
[370411645,1752006642446,-895.61,0.00024657,2]
[370411647,1752006642455,-460.0,0.00024657,2]
[370411649,1752006642464,-460.0,0.00024657,2]
[370411651,1752006642474,-460.0,0.00024657,2]
[370411653,1752006642483,-690.44,0.00024657,2]
[370411655,1752006642492,-460.0,0.00024657,2]
[370411657,1752006642502,-460.0,0.00024657,2]
[370411659,1752006642513,-583.85,0.00024657,2]
[370411661,1752006642523,-460.0,0.00024657,2]
[370411663,1752006642534,-460.0,0.00024657,2]
[370411665,1752006642544,-760.42,0.00024657,2]
[370411667,1752006642553,-460.0,0.00024657,2]
[370411669,1752006642563,-612.39,0.00024657,2]
[370411671,1752006642573,-460.0,0.00024657,2]
[370411673,1752006642583,-460.0,0.00024657,2]
[370411675,1752006642592,-460.0,0.00024657,2]
[370411677,1752006642602,-460.0,0.00024657,2]
[370411679,1752006642613,-460.0,0.00024657,2]
[370411681,1752006642623,-460.0,0.00024657,2]
[370411683,1752006642633,-609.42,0.00024657,2]
[370411685,1752006642642,-460.0,0.00024657,2]
[370411687,1752006642652,-460.0,0.00024657,2]
[370411689,1752006642663,-1500.0,0.00024657,2]
[370411693,1752006642672,-581.34,0.00024657,2]
[370411696,1752006642682,-700.59,0.00024657,2]
[370411699,1752006642692,-460.0,0.00024657,2]
[370411701,1752006642701,-460.0,0.00024657,2]
[370411703,1752006642711,-191.30723702,0.00024657,2]
[370411704,1752006642720,-460.0,0.00024657,2]
[370411708,1752006642729,-922.43,0.00024657,2]
[370411710,1752006642739,-619.63,0.00024657,2]
[370411712,1752006642749,-460.0,0.00024657,2]
[370411714,1752006642758,-1022.05,0.00024657,2]
[370411716,1752006642768,-460.0,0.00024657,2]
[370411718,1752006642777,-460.0,0.00024657,2]
[370411721,1752006642787,-460.0,0.00024657,2]
[370411724,1752006642797,-1173.31,0.00024657,2]
[370411727,1752006642806,-460.0,0.00024657,2]
[370411730,1752006642816,-460.0,0.00024657,2]
[370411733,1752006642826,-460.0,0.00024657,2]
[370411735,1752006642835,-460.0,0.00024657,2]
[370411738,1752006642845,-1158.15,0.00024657,2]
[370411740,1752006642855,-460.0,0.00024657,2]
[370411742,1752006642867,-460.0,0.00024657,2]
[370411744,1752006642876,-460.0,0.00024657,2]
[370411746,1752006642886,-738.11,0.00024657,2]
[370411748,1752006642896,-1101.74,0.00024657,2]
[370411750,1752006642906,-460.0,0.00024657,2]
[370411752,1752006642916,-460.0,0.00024657,2]
[370411755,1752006642925,-576.2,0.00024657,2]
[370411758,1752006642935,-460.0,0.00024657,2]
[370411761,1752006642944,-460.0,0.00024657,2]
[370411764,1752006642954,-460.0,0.00024657,2]
[370411767,1752006642964,-501.07,0.00024657,2]
[370411770,1752006642973,-460.0,0.00024657,2]
[370411776,1752006642983,-1866.87,0.00024657,2]
[370411779,1752006642992,-480.65,0.00024657,2]
[370411783,1752006643001,-460.0,0.00024657,2]
[370411786,1752006643011,-487.61,0.00024657,2]
[370411789,1752006643020,-210.0,0.00024657,2]
[370411792,1752006643030,-576.11,0.00024657,2]
[370411798,1752006643039,-460.0,0.00024657,2]
[370411801,1752006643049,-460.0,0.00024657,2]
[370411804,1752006643059,-1764.88,0.00024657,2]
[370411807,1752006643068,-460.0,0.00024657,2]
[370411810,1752006643077,-460.0,0.00024657,2]
[370411813,1752006643087,-460.0,0.00024657,2]
[370411815,1752006643095,-1477.96,0.00024657,2]
[370411817,1752006643105,-460.0,0.00024657,2]
[370411819,1752006643115,-1662.59,0.00024657,2]
[370411821,1752006643124,-460.0,0.00024657,2]
[370411823,1752006643134,-460.0,0.00024657,2]
[370411825,1752006643144,-460.0,0.00024657,2]
[370411827,1752006643153,-460.0,0.00024657,2]
[370411829,1752006643163,-460.0,0.00024657,2]
[370411831,1752006643174,-534.47,0.00024657,2]
[370411833,1752006643184,-460.0,0.00024657,2]
[370411835,1752006643194,-460.0,0.00024657,2]
[370411837,1752006643204,-460.0,0.00024657,2]
[370411839,1752006643214,-325.97525433,0.00024657,2]
[370411841,1752006643224,-460.0,0.00024657,2]
[370411843,1752006643234,-460.0,0.00024657,2]
[370411845,1752006643244,-337.8777838,0.00024657,2]
[370411862,1752006643254,-460.0,0.00024657,2]
[370411869,1752006643565,-460.0,0.00024657,2]
[370411871,1752006643575,-2538.15,0.00024657,2]
[370411873,1752006643584,-460.0,0.00024657,2]
[370411875,1752006643594,-868.37,0.00024657,2]
[370411877,1752006643603,-249.25332122,0.00024657,2]
[370411879,1752006643613,-460.0,0.00024657,2]
[370411881,1752006643622,-460.0,0.00024657,2]
[370411883,1752006643632,-460.0,0.00024657,2]
[370411885,1752006643641,-1333.39,0.00024657,2]
[370411887,1752006643651,-460.0,0.00024657,2]
[370411890,1752006643660,-460.0,0.00024657,2]
[370411893,1752006643669,-397.55825609,0.00024657,2]
[370411896,1752006643679,-460.0,0.00024657,2]
[370411898,1752006643689,-861.56,0.00024657,2]
[370411900,1752006643698,-460.0,0.00024657,2]
[370411902,1752006643708,-256.94348463,0.00024657,2]
[370411904,1752006643717,-460.0,0.00024657,2]
[370411906,1752006643727,-460.0,0.00024657,2]
[370411908,1752006643736,-497.37,0.00024657,2]
[370411910,1752006643746,-460.0,0.00024657,2]